Cogmind - Beta 9.5 *** ADVENTURER MODE // 2020.04.05 @ 11:02:07 Player: Plarzay Result: Destroyed by P-80 Master with Gamma Rifle Performance ------------- Evolutions (7) 3500 Regions Visited (12) 2400 Robots Destroyed (210) 1050 Value Destroyed (9160) 9160 Prototype IDs (8) 160 Alien Tech Used (0) 0 Bonus (1806) 1806 TOTAL SCORE: 18076 Bonus ------- High Alert Combat Kills 1595 Follower Combat Kills 400 Friendly Fire -189 Cogmind --------- Core Integrity 0/1300 Matter 38/300 Energy 98/100 System Corruption 32% Temperature Cool (-191) Movement Treading (180) Location -3/Research Parts ------- > --- POWER (2) -------- (None) > --- PROPULSION (5) --- Heavy Siege Treads > --- UTILITY (9) ------ Advanced Cryofiber Web Advanced Heat Sink Coolant Injector Advanced Salvage Targeting Computer Advanced Salvage Targeting Computer Improved Targeting Computer Improved Focal Shield > --- WEAPON (5) ------- (None) > --- INVENTORY (4) ---- Advanced Hacking Suite Heavy Machine Gun Peak State ------------ > --- POWER ------------ Light Antimatter Reactor Light Antimatter Reactor > --- PROPULSION ------- Myomer Leg Myomer Leg Myomer Leg Myomer Leg Myomer Leg > --- UTILITY ---------- Advanced Cryofiber Web Advanced Heat Sink Advanced Heat Sink Large Storage Unit Large Storage Unit Advanced Sensor Array Advanced Signal Interpreter Advanced Target Analyzer Weapon Cycler > --- WEAPON ----------- Gamma Rifle Nova Cannon Coil Gun Coil Gun Coil Gun > --- INVENTORY -------- Light Antimatter Reactor Light Antimatter Reactor Flexi-carbon Leg Flexi-carbon Leg Advanced Heat Sink Advanced Heat Sink Coolant Injector Improved Focal Shield Tesla Rifle Electrolaser Plasma Rifle Coil Gun Heavy Machine Gun Railgun Heavy Rocket Launcher Mini Smartbomb Launcher [Rating: 125] Favorites ----------- Power Improved Deuterium Engine Engine Improved Deuterium Engine Power Core Light Nuclear Core Reactor Light Antimatter Reactor Propulsion Aluminum Leg Treads Medium Treads Leg Aluminum Leg Hover Unit Antigrav System Flight Unit Xenon Bombardment Thruster Utility Large Storage Unit Device Advanced Heat Sink Storage Large Storage Unit Processor Advanced Signal Interpreter Protection Improved Light Armor Plating Weapon Improved Medium Laser Energy Gun Improved Medium Laser Energy Cannon Compact Ion Cannon Ballistic Gun Gauss Rifle Ballistic Cannon Heavy Gauss Cannon Launcher Mini Smartbomb Launcher Special Weapon Mining Laser Impact Weapon Powered Hammer Slashing Weapon Scythe Build | -11 -10 -10 -9 -8 -7 -6 -6 -6 -5 -5 -4 -3 ------- Run | Scr Mat Min Mat Mat Fac Fac Low Low Fac Ext Fac Res Slots Evolved 14 | . . . 2 2 2 2 . . 2 . 2 2 Power 1 | . . . . . . . . . 1 . . . Propulsion 3 | . . . 1 . . 1 . . . . . 1 Utility 7 | . . . 1 1 1 1 . . 1 . 1 1 Weapon 3 | . . . . 1 1 . . . . . 1 . Parts Attached 247 | 5 5 3 27 14 20 16 7 . 23 15 18 94 Power 30 | 1 . 1 2 1 2 3 2 . 5 1 1 11 Engine 13 | 1 . 1 1 . 2 2 2 . 3 . 1 . Core 7 | . . . 1 1 . 1 . . 2 1 . 1 Reactor 10 | . . . . . . . . . . . . 10 Propulsion 68 | 2 1 . 14 4 5 3 . . 4 7 6 22 Treads 3 | . . . . . . . . . . . . 3 Leg 59 | 2 1 . 11 4 5 3 . . 4 7 6 16 Wheel . | . . . . . . . . . . . . . Hover 1 | . . . . . . . . . . . . 1 Flight 5 | . . . 3 . . . . . . . . 2 Utility 68 | 1 3 . 6 6 6 5 1 . 4 3 7 26 Device 37 | . 2 . 1 4 3 1 . . 3 . 4 19 Storage 7 | 1 1 . 1 2 1 1 . . . . . . Processor 5 | . . . . . . . . . . . 1 4 Hackware . | . . . . . . . . . . . . . Protection 19 | . . . 4 . 2 3 1 . 1 3 2 3 Artifact . | . . . . . . . . . . . . . Weapon 81 | 1 1 2 5 3 7 5 4 . 10 4 4 35 Energy Gun 31 | 1 1 1 4 2 4 2 . . 2 2 2 10 Energy Cannon 7 | . . . 1 . 2 . . . 2 . . 2 Ballistic Gun 25 | . . . . 1 1 2 2 . . 2 1 16 Ballistic Cannon 2 | . . . . . . . . . . . 1 1 Launcher 11 | . . . . . . 1 1 . 4 . . 5 Special Weapon 1 | . . 1 . . . . . . . . . . Impact Weapon 1 | . . . . . . . . . . . . 1 Slashing Weapon 3 | . . . . . . . 1 . 2 . . . Piercing Weapon . | . . . . . . . . . . . . . Special Melee Weapon . | . . . . . . . . . . . . . Unidentified Prototypes 6 | . . . 2 . . . . . 2 . 1 1 Parts Lost 108 | . . . 9 1 6 6 4 . 1 5 5 71 Power 14 | . . . 2 . . 2 1 . . . . 9 Propulsion 30 | . . . 3 . 2 1 . . . 2 1 21 Utility 26 | . . . 1 . 2 . 1 . . 2 1 19 Weapon 38 | . . . 3 1 2 3 2 . 1 1 3 22 Highest Loss Streak 29 | . . . 9 1 3 5 6 . 1 4 1 29 Average Slot Usage (%) 94 | . 92 100 90 97 97 98 98 100 99 99 94 81 Engine 4 | . 14 14 2 . 2 5 4 6 9 3 3 . Core 3 | . . . 7 9 4 . . . 1 7 6 . Reactor 1 | . . . . . . . . . . . . 5 Leg 22 | . 28 28 29 26 22 26 26 26 23 22 20 14 Device 12 | . 8 14 3 11 19 6 6 6 11 11 14 21 Storage 13 | . 16 14 11 15 10 20 20 20 17 17 12 6 Protection 8 | . . . 18 9 6 12 13 13 11 10 10 2 Energy Gun 9 | . 23 24 14 23 14 8 4 . 3 9 8 3 Energy Cannon 3 | . . . . . 5 9 . . 5 11 5 . Ballistic Gun 6 | . . . . 3 9 6 17 20 8 . 5 8 Naked Turns . | . . . . . . . . . . . . . Heaviest Build 106 | 11 16 15 25 38 51 72 70 70 106 101 97 106 Greatest Support 125 | 20 20 20 33 38 40 56 51 51 71 80 90 125 Greatest Overweight (x) 11 | . . . 4 2 1 1 2 1 1 1 1 11 Average Overweight (x) . | . . . . . . 1 1 1 1 1 . . Largest Inventory Capacity 16 | 6 6 6 8 10 10 16 16 16 16 16 16 16 Average Capacity 12 | 5 6 6 6 9 10 15 16 16 16 16 16 12 Most Carried 16 | 4 6 6 8 10 10 13 10 10 16 16 16 16 Average Carried 10 | 2 4 5 6 7 9 9 9 10 13 15 15 9 Final Capacity 16 | 6 6 6 8 10 10 16 16 16 16 16 16 4 Final Carried 16 | 2 6 6 7 10 10 9 10 10 16 16 16 2 Class Distribution -------------------- 54% | Scavenger-Tank 16% | Mutant 13% | Scavenger-Mutant 10% | Tank 5% | Scavenger-Skirmisher Dominant Class ---------------- Mutant | -10/Materials Mutant | -10/Mines Mutant | -9/Materials Scavenger-Tank | -8/Materials Tank | -7/Factory Scavenger-Tank | -6/Factory Scavenger-Tank | -6/Lower Caves Scavenger-Tank | -6/Lower Caves Scavenger-Tank | -5/Factory Scavenger-Tank | -5/Extension Scavenger-Tank | -4/Factory Scavenger-Mutant | -3/Research Resources | -11 -10 -10 -9 -8 -7 -6 -6 -6 -5 -5 -4 -3 ----------- Run | Scr Mat Min Mat Mat Fac Fac Low Low Fac Ext Fac Res Matter Collected 4890 | 250 50 30 214 92 517 229 360 . 478 135 633 1902 Remotely . | . . . . . . . . . . . . . Salvage Created 9552 | . 284 132 450 492 718 376 426 . 1562 1066 848 3198 Parts 442 | . 11 11 24 32 40 9 15 . 86 31 30 153 Haulers Intercepted 4 | . . . 2 1 1 . . . . . . . Recyclers Shooed 9 | . 2 . . . . . . . 2 1 1 3 Parts Field Recycled . | . . . . . . . . . . . . . Retrieved Matter . | . . . . . . . . . . . . . Parts Self-Destructed 12 | . . . . . . . 12 . . . . . Prevented 4 | . . . . . . . 1 3 . . . . Kills | -11 -10 -10 -9 -8 -7 -6 -6 -6 -5 -5 -4 -3 ------- Run | Scr Mat Min Mat Mat Fac Fac Low Low Fac Ext Fac Res Combat Hostiles Destroyed 159 | . 4 5 8 10 14 7 10 . 24 12 14 51 Melee 1 | . . . 1 . . . . . . . . . Guns 103 | . 4 5 7 10 10 3 8 . 6 9 8 33 Cannons 18 | . . . . . 4 1 . . 4 2 5 2 AOE 31 | . . . . . . 3 2 . 13 . . 13 Classes Destroyed 17 | . 3 1 4 2 3 1 1 . . 1 . 1 Worker 12 | . . . . . 1 2 . . 1 . . 8 Builder 16 | . 1 . . . 1 . . . 11 . . 3 Tunneler 1 | . . . 1 . . . . . . . . . Hauler 4 | . . . 2 1 1 . . . . . . . Recycler 6 | . 1 . . . . . . . 2 1 . 2 Mechanic 1 | . . . . . 1 . . . . . . . Operator 2 | . . . 1 1 . . . . . . . . Watcher 8 | . . . . 1 1 1 . . 2 . 2 1 Swarmer 35 | . . 3 . 3 2 . 3 . 5 . 1 18 Saboteur 1 | . . . . . . . . . . . . 1 Grunt 70 | . 4 2 7 5 4 3 3 . 16 4 6 16 Brawler 5 | . . . . . . . 2 . 2 . . 1 Duelist 6 | . . . . 1 3 . 1 . 1 . . . Sentry 20 | . . . 1 1 3 1 1 . . 6 3 4 Hunter 11 | . . . . . . 2 . . 1 . 2 6 Programmer 9 | . . . . . 2 1 . . . . 2 4 Behemoth 3 | . . . . . . . . . . 2 . 1 Best Kill Streak 24 | . 3 3 2 4 5 4 7 . 24 3 3 13 Combat Bots Only 10 | . 2 3 2 4 4 3 6 . 10 3 3 9 Max Kills in Single Turn 4 | . 1 1 1 1 2 2 1 . 4 1 1 2 Gunslinging 1 | . . . . . . . . . . . . 1 Exploded 3 | . . . . . . 1 1 . 3 . . 2 Melee 1 | . . . 1 . . . . . . . . . Uniques/NPCs Destroyed . | . . . . . . . . . . . . . Combat | -11 -10 -10 -9 -8 -7 -6 -6 -6 -5 -5 -4 -3 -------- Run | Scr Mat Min Mat Mat Fac Fac Low Low Fac Ext Fac Res Damage Taken 15814 | . 148 265 898 398 1053 966 571 . 954 913 1261 8387 Core 2075 | . 30 45 250 69 135 40 22 . 41 108 16 1319 Absorbed by Shields 811 | . . . . 73 325 . . . . 210 . 203 Core Remaining (%) 81 | 100 . 70 37 87 80 . . 92 . 85 98 . Volleys Fired 437 | . 22 17 29 33 44 20 24 . 32 35 46 135 Largest 5 | . 2 2 2 3 4 4 4 . 4 4 5 5 Hottest 346 | . 80 80 165 168 229 245 194 . 301 333 346 342 Shots Fired 1251 | . 33 23 44 88 141 63 72 . 101 129 172 385 Gun 923 | . 33 23 42 88 99 38 70 . 49 61 102 318 Cannon 287 | . . . 1 . 42 20 . . 41 68 70 45 Launcher 40 | . . . . . . 5 2 . 11 . . 22 Special 1 | . . . 1 . . . . . . . . . Kinetic 509 | . . . . 17 64 15 51 . 21 4 92 245 Thermal 509 | . . 11 43 71 69 43 5 . 27 89 65 86 Explosive 31 | . . . . . . 5 2 . 7 . . 17 Electromagnetic 202 | . 33 12 1 . 8 . 14 . 46 36 15 37 Robot Hit Streak 68 | . 18 28 12 18 18 15 17 . 34 68 16 35 Robot Miss Streak 5 | . 1 2 2 2 5 2 2 . 2 4 3 5 Penetration Max 1 | . . . . . 1 . . . . . 1 1 Secondary Targets 9 | . . . . 1 . . 2 . . . . 6 Max Gunslinging Chain 2 | . . . . 1 . . 1 . . . . 2 Shots Hit Robots 907 | . 27 17 34 61 95 49 53 . 76 88 123 284 Core Hits 488 | . 12 8 34 24 41 21 34 . 94 30 40 150 Critical Hits 27 | . . . . . 2 2 . . 3 . 8 12 Critical Kills 12 | . . . . . . 1 . . 1 . 3 7 Critical Parts Destroyed 13 | . . . . . 2 1 . . 2 . 5 3 Melee Attacks 10 | . . . . . . . . . . . . 10 Impact 10 | . . . . . . . . . . . . 10 Slashing . | . . . . . . . . . . . . . Piercing . | . . . . . . . . . . . . . Sneak Attacks . | . . . . . . . . . . . . . Combat Hostiles . | . . . . . . . . . . . . . Follow-up Attacks . | . . . . . . . . . . . . . Damage Inflicted 26739 | . 453 236 593 895 2176 1788 1323 . 4675 2015 3321 9264 Guns 13859 | . 363 236 501 895 1397 528 1022 . 731 1194 1987 5005 Cannons 4737 | . . . 23 . 623 297 . . 679 821 1334 960 Explosions 7802 | . 90 . . . 156 963 301 . 3265 . . 3027 Melee 268 | . . . . . . . . . . . . 268 Ramming 73 | . . . 69 . . . . . . . . 4 Kinetic 8256 | . . . . 203 963 153 832 . 362 128 1777 3838 Thermal 9202 | . 90 109 501 692 1159 1163 69 . 953 1526 1447 1493 Explosive 5714 | . . . . . . 472 301 . 2256 . . 2685 Electromagnetic 3226 | . 363 127 23 . 54 . 121 . 1104 361 97 976 Impact 268 | . . . . . . . . . . . . 268 Slashing . | . . . . . . . . . . . . . Piercing . | . . . . . . . . . . . . . Highest Corruption 31 | . . . . . 1 . . . 1 1 2 31 Average Corruption 9 | . . . . . 1 . . . 1 1 1 19 Corruption Purged . | . . . . . . . . . . . . . Effects 111 | . . . . . 2 . . . 2 6 7 94 Message Errors 13 | . . . . . . . . . . 1 1 11 Matter Fused 10 | . . . . . . . . . . . . 10 Heat Flow Errors 6 | . . . . . . . . . . . 1 5 Energy Discharges 7 | . . . . . 1 . . . . . 2 4 Parts Rejected 3 | . . . . . . . . . . . . 3 Data Loss (minor) 8 | . . . . . . . . . 1 . 1 6 Misfires 1 | . . . . . . . . . . . . 1 Misdirections 7 | . . . . . . . . . . . . 7 Targeting Errors 48 | . . . . . 1 . . . 1 2 2 42 Weapon Failures 8 | . . . . . . . . . . 3 . 5 Overload Shots . | . . . . . . . . . . . . . Overflow Damage 730 | . . . . . 23 321 51 . 188 . 24 123 Projectiles 24 | . . . . . . . . . . . 24 . Explosions 691 | . . . . . 23 321 51 . 188 . . 108 Melee 15 | . . . . . . . . . . . . 15 Knockbacks 15 | . . . 1 . . . . . . . 8 6 Impact 3 | . . . 1 . . . . . . . . 2 Kinetic 12 | . . . . . . . . . . . 8 4 Secondary . | . . . . . . . . . . . . . Self-Inflicted Damage 779 | . 31 . 14 . . 239 32 . 182 . . 281 Shots 21 | . 1 . . . . 5 1 . 5 . . 9 Rammed 33 | . . . 31 . . . . . . . . 2 Targets Rammed 49 | . . . 47 . . . . . . . . 2 Kicked 16 | . . . 16 . . . . . . . . . Crushed . | . . . . . . . . . . . . . Highest Temperature 464 | . 142 . 312 453 199 374 111 . 305 464 317 344 Average Temperature 107 | . 49 . 73 166 112 117 23 . 62 149 91 101 Received Heat Transfer 2817 | . 84 54 639 129 105 87 147 . 315 209 126 922 Effects 15 | . . . . 2 . 2 . . . 6 4 1 Shutdowns 3 | . . . . . . . . . . 3 . . Energy Bleed 2 | . . . . . . . . . . . 1 1 Interference 8 | . . . . 2 . . . . . 3 3 . Matter Decay 1 | . . . . . . 1 . . . . . . Damage (minor) 1 | . . . . . . 1 . . . . . . Siege Activations . | . . . . . . . . . . . . . Robots Corrupted 3 | . . . . . . . . . 2 . . 1 Combat Hostiles 2 | . . . . . . . . . 1 . . 1 Parts Fried 18 | . 5 . . . . . . . 5 3 1 4 Impact Corruptions 2 | . . . . . . . . . . . . 2 Robots Melted 2 | . . . . . . . . . . 1 . 1 Combat Hostiles 2 | . . . . . . . . . . 1 . 1 Parts Melted 35 | . . 1 5 3 3 1 . . . 12 4 6 Heat Transferred 14315 | . 150 259 1126 1591 1987 1447 111 . 1053 2220 1924 2447 Parts Sabotaged . | . . . . . . . . . . . . . Parts Stolen . | . . . . . . . . . . . . . Parts Stripped . | . . . . . . . . . . . . . Power Chain Reactions 5 | . 2 . . . . . . . 3 . . . Missiles Intercepted . | . . . . . . . . . . . . . Alert | -11 -10 -10 -9 -8 -7 -6 -6 -6 -5 -5 -4 -3 ------- Run | Scr Mat Min Mat Mat Fac Fac Low Low Fac Ext Fac Res Peak Influence 1053 | . 117 174 87 365 337 519 . . 1053 682 643 843 Average Influence 326 | . 58 70 40 192 126 257 . . 307 547 460 596 Maximum Alert Level 3 | . . . . 1 1 2 . . 3 2 2 3 Low Security (%) 44 | 100 100 100 100 57 76 59 . . 58 . . . Level 1 13 | . . . . 42 23 17 . . 20 . 10 12 Level 2 34 | . . . . . . 23 . . 7 100 89 63 Level 3 7 | . . . . . . . . . 13 . . 23 Level 4 . | . . . . . . . . . . . . . Level 5 . | . . . . . . . . . . . . . High Security . | . . . . . . . . . . . . . Max Security . | . . . . . . . . . . . . . Squads Dispatched 38 | . . . 3 1 6 5 . . 11 1 3 8 Investigation 11 | . . . 2 1 1 3 . . 3 1 . . Extermination 9 | . . . . . 2 1 . . 2 . 1 3 Reinforcement 9 | . . . 1 . . . . . 6 . 2 . Assault 2 | . . . . . . . . . . . . 2 Garrison 7 | . . . . . 3 1 . . . . . 3 Intercept . | . . . . . . . . . . . . . Construction Impeded 1 | . . . . . . . . . 1 . . . Haulers Reinforced 3 | . . . . . . . . . 2 . 1 . Stealth | -11 -10 -10 -9 -8 -7 -6 -6 -6 -5 -5 -4 -3 --------- Run | Scr Mat Min Mat Mat Fac Fac Low Low Fac Ext Fac Res Distress Signals 9 | . . . 1 1 . . . . 2 2 . 3 Communications Jammed . | . . . . . . . . . . . . . Distress Signals . | . . . . . . . . . . . . . Times Spotted 224 | . 4 8 15 16 17 9 11 . 36 20 22 66 Peak Tracking Total 9 | . 2 3 3 6 4 3 4 . 9 9 6 9 Tactical Retreats 19 | . . . 2 1 . 1 1 . 5 1 1 7 Traps | -11 -10 -10 -9 -8 -7 -6 -6 -6 -5 -5 -4 -3 ------- Run | Scr Mat Min Mat Mat Fac Fac Low Low Fac Ext Fac Res Traps Triggered 9 | . . . 1 . 2 1 . . . 4 1 . Indirectly . | . . . . . . . . . . . . . Trap Hack Attempts . | . . . . . . . . . . . . . Triggered . | . . . . . . . . . . . . . Disarmed 7 | . . . . 6 . . . . 1 . . . Reprogrammed 3 | . . . . . 3 . . . . . . . Reused 1 | . . . . . 1 . . . . . . . Traps Extracted . | . . . . . . . . . . . . . Installed . | . . . . . . . . . . . . . Triggered 1 | . . . . . 1 . . . . . . . Machines | -11 -10 -10 -9 -8 -7 -6 -6 -6 -5 -5 -4 -3 ---------- Run | Scr Mat Min Mat Mat Fac Fac Low Low Fac Ext Fac Res Machines Disabled 40 | . 1 . . 1 2 15 . . 10 . 8 3 Max in Single Turn 13 | . 1 . . 1 2 13 . . 6 . 1 1 Garrison Access 1 | . . . . . 1 . . . . . . . Machines Sabotaged . | . . . . . . . . . . . . . Garrisons Compromised . | . . . . . . . . . . . . . Overloaded Fab Kills . | . . . . . . . . . . . . . Fab Network Shutdowns 1 | . . . . . . . . . 1 . . . Hacking | -11 -10 -10 -9 -8 -7 -6 -6 -6 -5 -5 -4 -3 --------- Run | Scr Mat Min Mat Mat Fac Fac Low Low Fac Ext Fac Res Machines Accessed 29 | . 2 . 7 2 4 2 . . 4 5 1 2 Terminals 23 | . 1 . 6 2 2 2 . . 3 5 . 2 Fabricators 1 | . . . . . . . . . 1 . . . Repair Stations 3 | . 1 . 1 . . . . . . . 1 . Recycling Units 1 | . . . . . 1 . . . . . . . Scanalyzers . | . . . . . . . . . . . . . Garrison Access 1 | . . . . . 1 . . . . . . . Total Hacks 77 | . 5 . 19 7 8 5 . . 12 14 2 5 Successful 39 | . 5 . 11 5 4 1 . . 6 4 2 1 Failed 38 | . . . 8 2 4 4 . . 6 10 . 4 Catastrophic 3 | . . . . . . 1 . . . . . 2 Database Lockouts . | . . . . . . . . . . . . . Manual 4 | . 2 . 1 1 . . . . . . . . Terminals 64 | . 2 . 17 7 4 5 . . 10 14 . 5 Fabricators 2 | . . . . . . . . . 2 . . . Repair Stations 7 | . 3 . 2 . . . . . . . 2 . Recycling Units 3 | . . . . . 3 . . . . . . . Scanalyzers . | . . . . . . . . . . . . . Garrison Access 1 | . . . . . 1 . . . . . . . Terminal Hacks 26 | . . . 9 5 2 1 . . 4 4 . 1 Record 2 | . . . . 1 . . . . 1 . . . Prototype ID Bank 1 | . . . . 1 . . . . . . . . Open Door 4 | . . . . . . . . . . 4 . . Branch Access Points 1 | . . . . 1 . . . . . . . . Emergency Access Points 2 | . . . 1 . . . . . . . . 1 Terminal Index 1 | . . . 1 . . . . . . . . . Repair Station Index 1 | . . . 1 . . . . . . . . . Unreport Threat 2 | . . . 2 . . . . . . . . . Disarm Traps 2 | . . . . 1 . . . . 1 . . . Reprogram Traps 1 | . . . . . 1 . . . . . . . Dispatch Records 1 | . . . 1 . . . . . . . . . Security Status 1 | . . . . . . 1 . . . . . . Reinforcement Status 1 | . . . . 1 . . . . . . . . Registered Components 1 | . . . 1 . . . . . . . . . Zone Layout 5 | . . . 2 . 1 . . . 2 . . . Fabricator Hacks 2 | . . . . . . . . . 2 . . . Network Status 1 | . . . . . . . . . 1 . . . Build 1 | . . . . . . . . . 1 . . . Repair Station Hacks 7 | . 3 . 2 . . . . . . . 2 . Scan Component 4 | . 2 . 1 . . . . . . . 1 . Repair 3 | . 1 . 1 . . . . . . . 1 . Recycling Unit Hacks 1 | . . . . . 1 . . . . . . . Retrieve Matter 1 | . . . . . 1 . . . . . . . Scanalyzer . | . . . . . . . . . . . . . Garrison Access Hacks 1 | . . . . . 1 . . . . . . . Seal Access 1 | . . . . . 1 . . . . . . . Unauthorized Hacks 4 | . 4 . . . . . . . . . . . Terminals 2 | . 2 . . . . . . . . . . . Track 1 | . 1 . . . . . . . . . . . Botnet 1 | . 1 . . . . . . . . . . . Fabricators . | . . . . . . . . . . . . . Repair Stations . | . . . . . . . . . . . . . Recycling Units . | . . . . . . . . . . . . . Scanalyzers . | . . . . . . . . . . . . . Garrison Access . | . . . . . . . . . . . . . Data Cores Recovered . | . . . . . . . . . . . . . Used . | . . . . . . . . . . . . . Hacking Detections 21 | . 2 . 4 2 3 2 . . 3 3 . 2 Full Trace Events 10 | . . . 1 2 1 2 . . 3 1 . . Feedback Events . | . . . . . . . . . . . . . Feedback Blocked . | . . . . . . . . . . . . . Robot Schematics Acquired . | . . . . . . . . . . . . . Robots Built 3 | . . . . . . . . . 3 . . . Matter 318 | . . . . . . . . . 318 . . . Time 169 | . . . . . . . . . 169 . . . Total Robot Build Rating 18 | . . . . . . . . . 18 . . . Part Schematics Acquired . | . . . . . . . . . . . . . Parts Built . | . . . . . . . . . . . . . Matter . | . . . . . . . . . . . . . Time . | . . . . . . . . . . . . . Total Part Build Rating . | . . . . . . . . . . . . . Parts Repaired 3 | . 1 . 1 . . . . . . . 1 . Time 96 | . 26 . 26 . . . . . . . 44 . Parts Recycled . | . . . . . . . . . . . . . Recycled Matter . | . . . . . . . . . . . . . Retrieved Matter . | . . . . . . . . . . . . . Retrieved Components . | . . . . . . . . . . . . . Parts Scanalyzed . | . . . . . . . . . . . . . Part Schematics Acquired . | . . . . . . . . . . . . . Parts Damaged . | . . . . . . . . . . . . . Bothacking | -11 -10 -10 -9 -8 -7 -6 -6 -6 -5 -5 -4 -3 ------------ Run | Scr Mat Min Mat Mat Fac Fac Low Low Fac Ext Fac Res Used RIF Installer . | . . . . . . . . . . . . . Robots Hacked . | . . . . . . . . . . . . . Non-combat . | . . . . . . . . . . . . . Combat . | . . . . . . . . . . . . . Robot Hacks Applied . | . . . . . . . . . . . . . Relay Couplers Released . | . . . . . . . . . . . . . Robots Rewired . | . . . . . . . . . . . . . Allies Hacked . | . . . . . . . . . . . . . Hacks Repelled . | . . . . . . . . . . . . . Allies | -11 -10 -10 -9 -8 -7 -6 -6 -6 -5 -5 -4 -3 -------- Run | Scr Mat Min Mat Mat Fac Fac Low Low Fac Ext Fac Res Total Allies 9 | . . 1 . . . . . . 3 5 . . Largest Group 3 | . . 1 . . . . . . 3 3 2 . Highest-Rated Group 224 | . . 31 . . . . . . 90 224 186 . Highest-Rated Ally 156 | . . 31 . . . . . . 30 156 149 . Total Orders . | . . . . . . . . . . . . . Ally Attacks 72 | . . 1 . . . . . . 4 66 1 . Total Damage 2634 | . . . . . . . . . 89 1865 680 . Kills 13 | . . . . . . . . . 1 9 3 . Allies Corrupted . | . . . . . . . . . . . . . Allies Melted . | . . . . . . . . . . . . . Intel | -11 -10 -10 -9 -8 -7 -6 -6 -6 -5 -5 -4 -3 ------- Run | Scr Mat Min Mat Mat Fac Fac Low Low Fac Ext Fac Res Robot Analysis Total . | . . . . . . . . . . . . . Derelict Logs Recovered . | . . . . . . . . . . . . . Drone Launches . | . . . . . . . . . . . . . Drone Recoveries . | . . . . . . . . . . . . . Exploration | -11 -10 -10 -9 -8 -7 -6 -6 -6 -5 -5 -4 -3 ------------- Run | Scr Mat Min Mat Mat Fac Fac Low Low Fac Ext Fac Res Turns Passed 7792 | 49 302 347 680 406 763 471 798 144 1004 622 697 1509 Spaces Moved 3840 | 36 159 241 329 203 385 234 462 97 500 294 328 572 Core 17 | 6 . . 7 . . . . . . . . 4 Treads 9 | . . . . . . . . . . . . 9 Legs 3813 | 30 159 241 321 203 385 234 462 97 500 294 328 559 Wheels . | . . . . . . . . . . . . . Hover . | . . . . . . . . . . . . . Flight 1 | . . . 1 . . . . . . . . . Fastest Speed 50 | 50 120 120 120 120 120 150 150 150 150 150 120 120 Average Speed 140 | 108 120 120 121 120 149 150 151 150 150 150 134 140 Slowest Speed 600 | 120 120 120 250 180 150 150 180 150 150 150 150 600 Overloaded Moves . | . . . . . . . . . . . . . Propulsion Burnouts . | . . . . . . . . . . . . . Robots Hopped . | . . . . . . . . . . . . . Cave-ins Triggered 2 | . . . . . . . . . . . . 2 Exploration Rate (%) 25 | 3 26 68 31 20 14 8 61 11 18 41 11 13 Regions Visited 12 Branch Regions 4 Pre-discovered Areas . | . . . . . . . . . . . . . Known Exits Taken 1 | . . . . . . . . . . . 1 . Unknown Exits Taken 11 | 1 1 1 1 1 1 1 1 1 1 1 . . Scrap Searched 2 | . . 1 . . . . 1 . . . . . Spaces Dug . | . . . . . . . . . . . . . Terrain Destroyed 469 | . 4 . 1 . 19 119 35 . 51 10 40 190 Melee . | . . . . . . . . . . . . . Projectile 75 | . . . 1 . 4 . 5 . 2 10 40 13 AOE 394 | . 4 . . . 15 119 30 . 49 . . 177 Actions | -11 -10 -10 -9 -8 -7 -6 -6 -6 -5 -5 -4 -3 --------- Run | Scr Mat Min Mat Mat Fac Fac Low Low Fac Ext Fac Res Total 5315 | 45 237 276 541 293 469 310 504 96 683 395 471 995 Wait 480 | . 37 12 77 28 4 32 7 . 91 17 63 112 Move 3828 | 35 158 240 328 202 384 233 461 96 499 293 327 572 Hop . | . . . . . . . . . . . . . Pick Up 154 | 5 11 1 19 11 10 8 5 . 21 7 6 50 Fast Attach 34 | 2 . 1 4 1 4 . . . 1 2 6 13 Attach 106 | 3 2 . 9 6 7 10 4 . 3 5 1 56 Detach 3 | . . . . 1 . 1 . . . . . 1 Swap 107 | . 3 2 14 7 9 6 3 . 19 8 11 25 Drop 85 | . 4 3 14 4 7 . . . 16 7 11 19 Fire 437 | . 22 17 29 33 44 20 24 . 32 35 46 135 Melee 10 | . . . . . . . . . . . . 10 Ram 14 | . . . 12 . . . . . . . . 2 Kick 35 | . . . 35 . . . . . . . . . Crush . | . . . . . . . . . . . . . Escape Stasis 20 | . . . . . . . . . . 20 . . Rewire 2 | . . . . . . . . . 1 1 . . Trap . | . . . . . . . . . . . . . Miscellaneous . | . . . . . . . . . . . . . Route ------- -11/Scrapyard -10/Materials -10/Mines -9/Materials -8/Materials -7/Factory -6/Factory -6/Lower Caves -6/Lower Caves -5/Factory -5/Extension -4/Factory -3/Research History --------- Turn | Location | Event 24 | -11/Scrapyard | Discovered new exit (range 15) 50 | -11/Scrapyard | Entered Materials 72 | -10/Materials | Discovered new exit (range 11) 208 | -10/Materials | Repaired Aluminum Leg 314 | -10/Materials | Build established: Mutant 352 | -10/Materials | Entered Mines 596 | -10/Mines | Received a Mining Laser from a helpful Derelict 624 | -10/Mines | Discovered new exit (range 7) 699 | -10/Mines | Entered Materials 699 | -9/Materials | Evolved 2 slots: Propulsion x1, Utility x1 887 | -9/Materials | Core integrity fell below 50% 930 | -9/Materials | Lost 9 parts (2p3n1u3w) 1299 | -9/Materials | Repaired Aluminum Leg 1365 | -9/Materials | Discovered new exit (range 6) 1379 | -9/Materials | Entered another Materials area 1379 | -8/Materials | Evolved 2 slots: Utility x1, Weapon x1 1763 | -8/Materials | Discovered new exit (range 11) 1785 | -8/Materials | Entered Factory 1785 | -7/Factory | Evolved 2 slots: Utility x1, Weapon x1 2078 | -7/Factory | Build established: Tank 2091 | -7/Factory | Garrison activated, responded to threat 2465 | -7/Factory | Discovered new exit (range 15) 2548 | -7/Factory | Entered another Factory area 2548 | -6/Factory | Evolved 2 slots: Propulsion x1, Utility x1 2560 | -6/Factory | Lost 3 parts (1n1u1w) 2803 | -6/Factory | Build established: Scavenger-Tank 2956 | -6/Factory | Discovered new exit (range 15) 2986 | -6/Factory | Garrison activated, responded to threat 3019 | -6/Factory | Entered Lower Caves 3056 | -6/Lower Caves | Lost 6 parts (3p1n2w) 3141 | -6/Lower Caves | Attracted the attention of an 0b10 checkpoint 3415 | -6/Lower Caves | Spotted B-75 Beast 3682 | -6/Lower Caves | Encountered a Warlord checkpoint 3808 | -6/Lower Caves | Discovered new exit (range 7) 3817 | -6/Lower Caves | Entered another Lower Caves area 3954 | -6/Lower Caves | Discovered new exit (range 6) 3961 | -6/Lower Caves | Entered Factory 3961 | -5/Factory | Evolved 2 slots: Power x1, Utility x1 4490 | -5/Factory | Fabricated B-60 Warrior (x3) 4593 | -5/Factory | Destroyed 7 combat bots 4609 | -5/Factory | Found Prototype Launcher 4610 | -5/Factory | Identified Mni. Smartbomb Launcher 4753 | -5/Factory | Discovered new exit (range 14) 4757 | -5/Factory | Local fabrication network quarantined 4910 | -5/Factory | Destroyed 10 combat bots 4965 | -5/Factory | Entered Extension 5053 | -5/Extension | Lost 4 parts (1n2u1w) 5237 | -5/Extension | Rescued A7 5296 | -5/Extension | Rescued a captive Derelict 5297 | -5/Extension | Rescued a captive Derelict 5458 | -5/Extension | Rescued a captive Derelict 5458 | -5/Extension | Rescued a captive Derelict 5504 | -5/Extension | Spotted B-75 Beast 5517 | -5/Extension | Spotted B-75 Beast 5526 | -5/Extension | Destroyed B-75 Beast 5550 | -5/Extension | Destroyed B-75 Beast 5584 | -5/Extension | Discovered new exit (range 3) 5587 | -5/Extension | Entered Factory 5587 | -4/Factory | Accompanied by 2 allies 5587 | -4/Factory | Evolved 2 slots: Utility x1, Weapon x1 5732 | -4/Factory | Repaired Imp. Deuterium Engine 6209 | -4/Factory | Discovered new exit (range 16) 6282 | -4/Factory | Identified exit to Research 6284 | -4/Factory | Entered Research 6284 | -3/Research | Evolved 2 slots: Propulsion x1, Utility x1 6723 | -3/Research | Lost 8 parts (4n2u2w) 6725 | -3/Research | Destroyed 9 combat bots 6966 | -3/Research | Build established: Scavenger-Skirmisher 6970 | -3/Research | Spotted B-86 Titan 6977 | -3/Research | Destroyed B-86 Titan 6993 | -3/Research | Found Hvy. Reflective Plating 7047 | -3/Research | Garrison activated, responded to threat 7082 | -3/Research | First assault squad dispatched 7112 | -3/Research | Crushed by falling debris 7117 | -3/Research | System corruption reached 10% 7128 | -3/Research | Crushed by falling debris 7183 | -3/Research | Destroyed 8 combat bots 7184 | -3/Research | Core integrity fell below 50% 7193 | -3/Research | Lost 29 parts (4p6n9u10w) 7557 | -3/Research | Lost 3 parts (1n1u1w) 7617 | -3/Research | Core integrity fell below 20% 7663 | -3/Research | Lost 9 parts (2p3n2u2w) 7788 | -3/Research | System corruption reached 30% 7793 | -3/Research | Destroyed by P-80 Master with Gamma Rifle Last Messages --------------- 07782_ Lgt. Antimatter Reactor destroyed. 07782_ Acquired Hvy. Machine Gun. 07783_ The unstable cave ceiling collapses. 07784_ ALERT: Significant disruption in Zone 5Y, assault force dispatched. 07784_ Mni. Smartbomb Launcher destroyed. 07784_ Scanalyzer disabled. 07784_ Flexi-carbon Leg destroyed. 07786_ System corrupted: Component data lost. 07786_ System corrupted: Hvy. Machine Gun targeting data glitched. 07786_ Adv. Medium Treads destroyed. 07787_ Adv. Heat Sink destroyed. 07787_ System corrupted: Hvy. Machine Gun targeting data glitched. 07787_ Critical hit. 07787_ Hvy. Machine Gun destroyed. 07787_ Adv. Sensor Array destroyed. 07791_ Lgt. Antimatter Reactor destroyed. 07793_ Adv. Heat Sink destroyed. 07793_ Acquired Hvy. Machine Gun. [Achievement: 10k Club] [Achievement: Just Browsing] Map ----- +----------------------------------------------------+ | % ## # # #???????????????? | | !!! # # #? ?????????????? | | !! ##+###??????????? | | !! # # + ???????????? | | ## ## # # #????????????? | | # ## # ####### #????????????? | | #### # # # #### ##### #????????????? | | # ## # ## ## #??# #####/### #? !????????? | | ####?######??# # # # ?????????? | | #????????????# # + / ???????????? | | ###????????????? # ### #????????????? | | ##??????????????# # #?# #????????????? | | ????????????????# # ### #????????????? | | ?????????? ##### ######t## #????#???????? | | ?????????? #### ##### ? | | ????????? ! ? | | ????????? | | ?????????????### """ | | ???????????????# """ ### | | ???????????????# """ ! #?#+#############?? | | ???????????????# +? ?????????????? | | ???????????????+ !! #? ?????????????? | | ???????????????# ! # ????????????? | | ???????????????# # ### ????????????? | | ???????????????# sp= ## "???????????? | | ???????????????# p@ ## "???????????? | | ???????????????# p "## ""??????????? | | ???????????? ""## ! ??????????? | | ??????????? = # ""## ???????????? | | ??????????? =%* # S#########??????????? | | ???????????? ##;######?# ""#??????????????????? | | ?????????????? ???????# ""#??????????????????? | | ???????????????????????# ""#??????????????????? | | ???????????????????????#!/ Y #??????????????????? | | ???????????????????????#!! = ???????????????????? | | ???????????????????????# ???????????????????? | | ???????????????????????# ???????????????????? | | ???????????????????????###### ???????????????????? | | ?????????????????????????????#???????????????????? | | ?????????????????????????????????????????????????? | | ?????????????????????????????????????????????????? | | ?????????????????????????????????????????????????? | | ?????????????????????????????????????????????????? | | ?????????????????????????????????????????????????? | | ?????????????????????????????????????????????????? | | ?????????????????????????????????????????????????? | | ?????????????????????????????????????????????????? | | ?????????????????????????????????????????????????? | | ?????????????????????????????????????????????????? | | | +----------------------------------------------------+ Best States ------------- Heat Dissipation 122 Coolant Potential 65 Energy Generation 37 Energy Capacity 800 Matter Stores 300 Matter Capacity 300 Sight Range 16 Robot Scan Range 20 Terrain Scan Density 10 Base Temperature (-) 200 Armor Coverage 600 Resistance: KI 45 Resistance: TH 45 Resistance: EX 20 Resistance: EM 20 Resistance: I 20 Resistance: S 20 Resistance: P 20 Core Shielding 20 Weapon Cycling 15 Evasion (%) 50 Target Analysis 8 Recoil Reduction 2 Energy Filtering 30 Salvage Targeting 6 Offensive Hacking 10 Item Schematics ----------------- None Robot Schematics ------------------ None Fabricated ------------ B-60 Warrior | x3 | -5/Factory | Preloaded Alien Tech Used ----------------- None Achievements -------------- 10k Club Backstab Dangerous Findings Fist Fight Hey, That's Mine! I Spy It Was An Accident, I Swear It's Just You Just Browsing Leap Before You Look Let's See Who's Tougher Loot Pinata My Command Is Your Wish Oh No You Don't! Power Corrupts Prison Break Remodeling Respectable Loadout Significant Disruption System Compromised True Hacker Unlikely Earthworm Challenges ------------ None Game ------ Seed GuidedArmageddonSheargun Manual? 0 Play Time 02:31:06 Cumulative 17.2 hours Start 2020.04.04 @ 16:59:51 End 2020.04.05 @ 11:02:07 Sessions 5 Manual Loads 0 Difficulty Adventurer Special Mode None Game No. 13 Rogue 10 Adventurer 3 Explorer 0 Win Type - Total 0 Types 0/0/0/0/0/0/0 Lore% 12 Gallery% 26 Achievement% 15 Wizard Run 0 Options --------- ASCII 0 Keyboard 0 Movement Mouse Keybinds 0 Fullscreen 1 Font 18/SmallcapsGlow Map View 76x50 Tactical HUD 1 Map Filters NONE Filters NONE Steam 1 RUN: 737f8de9-0b1d-435d-9ff7-89b440a9f6cb